bitfinex/quotes_BTCUSD_20211001
["timestamp","ask_amount","ask_price","bid_price","bid_amount"]
[1633079184087,0.58118677,44913.0,44912.0,0.26963246]
[1633079184290,0.67881262,44913.0,44912.0,0.26963246]
[1633079184487,0.67881262,44913.0,44912.0,0.26063246]
[1633079184691,0.67181262,44913.0,44912.0,0.27863246]
[1633079185289,1.00593262,44913.0,44912.0,0.27863246]
[1633079186091,0.98193262,44913.0,44912.0,0.26063246]
[1633079186691,1.00893262,44913.0,44912.0,0.27863246]
[1633079187311,0.98193262,44913.0,44912.0,0.26063246]
[1633079188715,1.00993262,44913.0,44912.0,0.27563246]
[1633079189311,0.57818677,44913.0,44912.0,0.27563246]
[1633079190313,0.62190302,44913.0,44912.0,0.26063246]
[1633079190709,0.64690302,44913.0,44912.0,0.27663246]
[1633079191114,0.62190302,44913.0,44912.0,0.26063246]
[1633079191314,0.87180302,44913.0,44912.0,0.26063246]
[1633079191513,1.12170302,44913.0,44912.0,0.26063246]
[1633079192913,1.14070302,44913.0,44912.0,0.27863246]
[1633079193516,0.89080302,44913.0,44912.0,0.27863246]
[1633079193716,0.64090302,44913.0,44912.0,0.27863246]
[1633079194516,0.62190302,44913.0,44912.0,0.26063246]
[1633079194716,0.65490302,44913.0,44912.0,0.26863246]
[1633079195717,0.83308677,44913.0,44912.0,0.26863246]
[1633079196122,1.08298677,44913.0,44912.0,0.26063246]
[1633079196377,0.80008677,44913.0,44912.0,0.26063246]
[1633079196577,0.55018677,44913.0,44912.0,0.26063246]
[1633079196777,0.58418677,44913.0,44912.0,0.26963246]
[1633079198177,0.55018677,44913.0,44912.0,0.26063246]
[1633079198580,0.65018677,44913.0,44912.0,0.26063246]
[1633079198782,0.68318677,44913.0,44912.0,0.26263246]
[1633079198980,0.93308677,44913.0,44912.0,0.26263246]
[1633079199180,1.18298677,44913.0,44912.0,0.26263246]
[1633079199380,1.08298677,44913.0,44912.0,0.26263246]
[1633079200781,1.08498677,44913.0,44912.0,0.26263246]
[1633079201385,1.18498677,44913.0,44912.0,0.26263246]
[1633079202184,1.14998677,44913.0,44912.0,0.26063246]
[1633079202784,1.18598677,44913.0,44912.0,0.26063246]
[1633079203987,1.52590317,44913.0,44912.0,0.26063246]
[1633079204193,1.1986,44912.0,44911.0,0.1012]
[1633079204388,1.1986,44912.0,44908.0,0.00332635]
[1633079204389,0.9,44909.0,44908.0,0.00332635]
[1633079204589,3.38495804,44909.0,44908.0,0.00332635]
[1633079204788,3.54988705,44909.0,44908.0,0.00332635]
[1633079204985,1.14368323,44909.0,44908.0,0.00332635]
[1633079205285,2.4609861,44909.0,44908.0,0.00332635]
[1633079205485,2.70609573,44909.0,44908.0,0.00332635]
[1633079205684,2.00609573,44909.0,44908.0,0.00332635]
[1633079206685,3.18609573,44909.0,44908.0,0.00332635]
[1633079206888,3.21909573,44909.0,44908.0,0.00332635]
[1633079207087,2.63402127,44909.0,44908.0,0.00332635]
[1633079207886,2.60102127,44909.0,44908.0,0.00332635]
[1633079208287,2.8461457,44909.0,44908.0,0.00332635]
[1633079208887,2.63099899,44909.0,44908.0,0.00332635]
[1633079209287,2.93347536,44909.0,44908.0,0.00212635]
[1633079209489,3.51560239,44909.0,44908.0,0.00212635]
[1633079209688,4.06550239,44909.0,44908.0,0.00172635]
[1633079209888,0.95,44908.0,44907.0,0.0016]
[1633079210089,3.02648339,44908.0,44907.0,0.0016]
[1633079210288,2.9026301,44908.0,44907.0,0.0016]
[1633079210891,2.9316301,44908.0,44907.0,0.0016]
[1633079211497,2.93290246,44908.0,44903.0,0.1012]
[1633079211698,2.68423397,44904.0,44903.0,0.0961]
[1633079211896,2.90706407,44904.0,44903.0,0.0961]
[1633079212094,4.67696407,44904.0,44903.0,0.0961]
[1633079212294,5.01122107,44904.0,44903.0,0.0961]
[1633079212493,4.66112107,44904.0,44903.0,0.0961]
[1633079212695,2.139357,44904.0,44903.0,0.0961]
[1633079212897,1.116157,44904.0,44903.0,0.0961]
[1633079213695,1.172937,44904.0,44903.0,0.0961]
[1633079214597,1.239937,44904.0,44903.0,0.0961]
[1633079214796,0.40568,44904.0,44903.0,0.0961]
[1633079214998,0.42568,44904.0,44903.0,0.0961]
[1633079215399,0.32568,44904.0,44903.0,0.0961]
[1633079215600,0.57445856,44904.0,44903.0,0.0961]
[1633079215797,0.32568,44904.0,44903.0,0.0961]
[1633079216395,0.30568,44904.0,44903.0,0.0961]
[1633079216800,0.40568,44904.0,44903.0,0.0961]
[1633079216999,0.42268,44904.0,44903.0,0.03161966]
[1633079218399,0.45568,44904.0,44903.0,0.03161966]
[1633079218597,0.4562101,44904.0,44903.0,0.03161966]
[1633079218800,0.45568,44904.0,44903.0,0.03161966]
[1633079219000,0.48868,44904.0,44903.0,0.03161966]
[1633079219598,0.59868,44904.0,44903.0,0.03161966]
[1633079220201,1.05436402,44904.0,44903.0,0.03161966]
[1633079220404,1.02314777,44904.0,44903.0,0.03161966]
[1633079220601,0.79994777,44904.0,44903.0,0.03161966]
[1633079221003,0.82969412,44904.0,44903.0,0.03161966]
[1633079221202,0.5972101,44904.0,44903.0,0.03161966]
[1633079222004,0.9972101,44904.0,44903.0,0.03161966]
[1633079222200,1.4662101,44904.0,44903.0,0.03161966]
[1633079222401,1.0662101,44904.0,44903.0,0.03161966]
[1633079223000,1.2662101,44904.0,44903.0,0.03161966]
[1633079223203,1.3042101,44904.0,44903.0,0.03161966]
[1633079223403,1.5541101,44904.0,44903.0,0.03161966]
[1633079223602,2.1040101,44904.0,44903.0,0.03161966]
[1633079223802,2.3440101,44904.0,44903.0,0.03161966]
[1633079224203,3.5240101,44904.0,44903.0,0.03161966]
[1633079224607,3.4860101,44904.0,44903.0,0.03161966]
[1633079225205,3.5270101,44904.0,44903.0,0.03161966]
[1633079226608,3.4860101,44904.0,44903.0,0.03161966]
[1633079226811,3.48548,44904.0,44903.0,0.03161966]
[1633079227407,3.52648,44904.0,44903.0,0.03161966]
[1633079227608,2.14648,44904.0,44903.0,0.03161966]
[1633079228009,1.75648,44904.0,44903.0,0.03161966]
[1633079228208,1.50658,44904.0,44903.0,0.03161966]
[1633079228407,1.25668,44904.0,44903.0,0.03161966]
[1633079228611,1.21568,44904.0,44903.0,0.03161966]
[1633079229008,0.71568,44904.0,44903.0,0.03161966]
[1633079229205,0.75168,44904.0,44903.0,0.03461966]
[1633079229407,0.85168,44904.0,44903.0,0.03461966]
[1633079230407,0.85168,44904.0,44901.0,0.0012]
[1633079230408,0.45,44902.0,44901.0,0.0012]
[1633079230608,0.28338,44902.0,44901.0,0.0012]
[1633079230811,0.38338,44902.0,44901.0,0.0012]
[1633079231412,0.42638,44902.0,44901.0,0.0012]
[1633079231809,0.4269101,44902.0,44901.0,0.0012]
[1633079232412,2.29263202,44902.0,44901.0,0.0012]
[1633079232808,2.24963202,44902.0,44901.0,0.0012]
[1633079233012,0.3839101,44902.0,44901.0,0.0012]
[1633079233209,0.42738,44902.0,44901.0,0.0012]
[1633079233411,0.32738,44902.0,44901.0,0.0012]
[1633079233912,0.3279101,44902.0,44901.0,0.0012]
[1633079234112,0.3923347,44902.0,44901.0,0.0012]
[1633079234310,0.00399999,44899.0,44898.0,0.0016]
[1633079234518,0.28737999,44899.0,44898.0,0.0016]
[1633079234913,0.38737999,44899.0,44898.0,0.0016]
[1633079235110,0.43237999,44899.0,44898.0,0.0016]
[1633079236513,0.38737999,44899.0,44898.0,0.0016]
[1633079237111,0.38791009,44899.0,44898.0,0.0016]
[1633079237313,0.82607601,44899.0,44898.0,0.0016]
[1633079237519,1.34837601,44899.0,44898.0,0.0016]
[1633079237713,1.77682579,44899.0,44898.0,0.0016]
[1633079237913,1.84027027,44899.0,44898.0,0.0016]
[1633079238313,1.59353535,44899.0,44898.0,0.0016]
[1633079238713,1.56253535,44899.0,44898.0,0.0016]
[1633079238915,1.77345005,44899.0,44898.0,0.0016]
[1633079239313,1.81145005,44899.0,44898.0,0.0016]
[1633079239512,1.22348518,44899.0,44898.0,0.0016]
[1633079240116,1.42348518,44899.0,44898.0,0.0016]
[1633079240314,1.21257048,44899.0,44898.0,0.0016]
[1633079240516,1.17457048,44899.0,44898.0,0.0016]
[1633079240917,0.7266,44896.0,44895.0,3.9956]
[1633079241116,1.139966,44896.0,44895.0,3.9956]
[1633079241317,1.4804961,44896.0,44895.0,3.9956]
[1633079241918,1.479966,44896.0,44895.0,3.9956]
[1633079243322,1.518966,44896.0,44895.0,3.9956]
[1633079243718,1.5194961,44896.0,44895.0,3.9956]
[1633079244120,1.518966,44896.0,44895.0,3.9956]
[1633079244383,2.898966,44896.0,44895.0,3.98715214]
[1633079244580,2.8994961,44896.0,44895.0,3.98715214]
[1633079244780,2.90158213,44896.0,44895.0,3.98715214]
[1633079244981,1.78589273,44896.0,44895.0,3.98715214]
[1633079245184,1.52105203,44896.0,44895.0,3.98715214]
[1633079245383,1.55605203,44896.0,44895.0,3.98715214]
[1633079245580,1.60605203,44896.0,44895.0,3.98715214]
[1633079246382,1.60658213,44896.0,44895.0,3.98715214]
[1633079246587,1.60605203,44896.0,44895.0,3.98715214]
[1633079246783,1.57105203,44896.0,44895.0,3.98715214]
[1633079247387,1.60558213,44896.0,44895.0,3.98715214]
[1633079247585,1.80558213,44896.0,44895.0,3.98715214]
[1633079248787,1.77105203,44896.0,44895.0,3.98715214]
[1633079249390,1.80558213,44896.0,44895.0,3.98715214]
[1633079250189,1.80505203,44896.0,44895.0,3.98715214]
[1633079250390,2.05505203,44896.0,44895.0,3.79364588]
[1633079250596,2.02158213,44896.0,44895.0,3.79364588]
[1633079250993,2.08586024,44896.0,44895.0,3.79364588]
[1633079251190,1.83586024,44896.0,44895.0,3.79364588]
[1633079251393,1.86933014,44896.0,44895.0,3.79364588]
[1633079251597,1.763966,44896.0,44895.0,3.79364588]
[1633079252195,1.7644961,44896.0,44895.0,3.79364588]
[1633079252393,1.763966,44896.0,44895.0,3.79364588]
[1633079252795,1.729966,44896.0,44895.0,3.79364588]
[1633079253001,2.909966,44896.0,44895.0,3.79364588]
[1633079253200,2.97428701,44896.0,44895.0,3.79364588]
[1633079253396,2.97481711,44896.0,44895.0,3.79364588]
[1633079253596,3.01407093,44896.0,44895.0,3.79364588]
[1633079253796,3.51407093,44896.0,44895.0,3.79364588]
[1633079254798,3.50828701,44896.0,44895.0,3.79364588]
[1633079254999,3.47428701,44896.0,44895.0,3.79364588]
[1633079255199,3.72428701,44896.0,44895.0,3.53562635]
[1633079255400,3.75828701,44896.0,44895.0,3.53562635]
[1633079256003,3.75826667,44896.0,44895.0,3.53562635]
[1633079256200,3.50826667,44896.0,44895.0,3.53562635]
[1633079256800,2.97426667,44896.0,44895.0,3.53562635]
[1633079257004,3.22479677,44896.0,44895.0,3.47112298]
[1633079257602,3.25879677,44896.0,44895.0,3.47112298]
[1633079257799,3.25826667,44896.0,44895.0,3.47112298]
[1633079258200,2.07826667,44896.0,44895.0,3.47112298]
[1633079258802,2.04426667,44896.0,44895.0,3.47112298]
[1633079259005,2.2895843,44896.0,44895.0,3.47112298]
[1633079259202,2.0395843,44896.0,44895.0,3.47112298]
[1633079259404,2.2895843,44896.0,44895.0,3.47112298]
[1633079259603,2.3245843,44896.0,44895.0,3.47112298]
[1633079259805,2.32511408,44896.0,44895.0,3.47112298]
[1633079260005,2.32458398,44896.0,44895.0,3.47112298]
[1633079260205,2.07927081,44896.0,44895.0,3.47112298]
[1633079260407,2.32458713,44896.0,44895.0,3.47112298]
[1633079260807,2.28958713,44896.0,44895.0,3.47112298]
[1633079261409,2.32458713,44896.0,44895.0,3.47112298]
[1633079261809,2.12458713,44896.0,44895.0,3.47112298]
[1633079262610,2.32458713,44896.0,44895.0,3.47112298]
[1633079263014,2.4181885,44896.0,44895.0,1.68786972]
[1633079263211,2.4187186,44896.0,44895.0,1.59771758]
[1633079263412,2.46362955,44896.0,44895.0,1.59771758]
[1633079263613,2.49762955,44896.0,44895.0,1.59771758]
[1633079263811,2.36902818,44896.0,44895.0,1.59771758]
[1633079264212,2.86902818,44896.0,44895.0,1.59771758]
[1633079264411,2.86361895,44896.0,44895.0,1.44289989]
[1633079264614,2.66308885,44896.0,44895.0,1.44289989]
[1633079265015,2.86308885,44896.0,44895.0,1.44289989]
[1633079265274,2.82908885,44896.0,44895.0,1.44289989]
[1633079265415,2.82961895,44896.0,44895.0,1.44289989]
[1633079265612,2.32258713,44896.0,44895.0,1.44289989]
[1633079266013,2.45109293,44896.0,44895.0,1.44289989]
[1633079266218,2.45162303,44896.0,44895.0,1.44289989]
[1633079266413,2.45114551,44896.0,44895.0,1.45389989]
[1633079266613,2.32258713,44896.0,44895.0,1.45389989]
[1633079266814,2.28958713,44896.0,44895.0,1.45389989]
[1633079267218,2.58958713,44896.0,44895.0,1.45389989]
[1633079267613,2.7521403,44896.0,44895.0,1.45389989]
[1633079268013,2.75215011,44896.0,44895.0,1.45389989]
[1633079269417,2.71815011,44896.0,44895.0,1.45389989]
[1633079269617,2.75215011,44896.0,44895.0,1.45389989]
[1633079269820,2.25215011,44896.0,44895.0,1.45389989]
[1633079270221,3.50358713,44896.0,44895.0,1.45389989]
[1633079270420,3.50411723,44896.0,44895.0,1.26037805]
[1633079271427,3.97011723,44896.0,44895.0,1.14707805]
[1633079271620,2.82358713,44896.0,44895.0,1.14707805]
[1633079271821,2.62358713,44896.0,44895.0,1.14707805]
[1633079272219,3.77358713,44896.0,44895.0,1.03377805]
[1633079272421,0.39297685,44895.0,44894.0,0.0008]
[1633079272621,3.4484279,44895.0,44894.0,0.0008]
[1633079272820,3.96678195,44895.0,44894.0,0.0008]
[1633079273021,2.98719182,44895.0,44894.0,0.0008]
[1633079273419,3.23709182,44895.0,44894.0,0.0008]
[1633079273629,3.71111667,44895.0,44894.0,0.0008]
[1633079273818,3.21899182,44895.0,44894.0,0.0008]
[1633079274023,4.89117918,44895.0,44894.0,0.0008]
[1633079274221,4.39899182,44895.0,44894.0,0.0008]
[1633079274422,5.78125248,44895.0,44894.0,0.0008]
[1633079274622,6.28125248,44895.0,44894.0,0.0008]
[1633079274825,5.78899182,44895.0,44894.0,0.0008]
[1633079275222,5.75699182,44895.0,44894.0,0.0008]
[1633079275622,6.24920774,44895.0,44894.0,0.0008]
[1633079275822,6.28020774,44895.0,44894.0,0.0008]
[1633079277284,2.384369,44894.0,44893.0,0.0004]
[1633079277424,5.33502428,44894.0,44893.0,0.0004]
[1633079277621,6.17833781,44894.0,44893.0,0.0004]
[1633079277823,6.67876791,44894.0,44893.0,0.0004]
[1633079278224,6.17896791,44894.0,44893.0,0.0004]
[1633079278823,6.67876791,44894.0,44893.0,0.0004]
[1633079279826,6.71276791,44894.0,44893.0,0.0004]
[1633079280285,0.55919999,44889.0,44888.0,0.0016]
[1633079280428,1.18060515,44889.0,44888.0,0.0016]
[1633079280826,1.18113525,44889.0,44888.0,0.0016]
[1633079281424,1.68113525,44889.0,44888.0,0.0016]
[1633079281826,1.71413525,44889.0,44888.0,0.0016]
[1633079282631,1.91413525,44889.0,44888.0,0.0016]
[1633079283225,1.88113525,44889.0,44888.0,0.0016]
[1633079283829,1.91413525,44889.0,44888.0,0.0016]
[1633079284625,1.91360515,44889.0,44888.0,0.0016]
[1633079285225,1.91413525,44889.0,44888.0,0.0016]
[1633079285424,1.88113525,44889.0,44888.0,0.0016]
[1633079285824,3.09413525,44889.0,44888.0,0.0016]
[1633079286288,1.91413525,44889.0,44888.0,0.0016]
[1633079286427,3.09413525,44889.0,44888.0,0.0016]
[1633079286626,1.16413525,44889.0,44888.0,0.0016]
[1633079286830,0.56360515,44889.0,44888.0,0.00280375]
[1633079287032,0.25393599,44889.0,44888.0,0.00280375]
[1633079287429,0.22093599,44889.0,44888.0,0.00280375]
[1633079287629,0.22093599,44889.0,44888.0,0.0016]
[1633079288034,0.24993599,44889.0,44888.0,0.0016]
[1633079289328,0.22093599,44889.0,44888.0,0.0016]
[1633079289931,0.24993599,44889.0,44888.0,0.0016]
[1633079290330,0.09497999,44889.0,44888.0,0.0016]
[1633079291132,0.06597999,44889.0,44888.0,0.0016]
[1633079291532,0.29257999,44889.0,44888.0,0.0016]
[1633079291931,0.31957999,44889.0,44888.0,0.0016]
[1633079292332,0.41957999,44889.0,44888.0,0.0012]
[1633079293333,0.39257999,44889.0,44888.0,0.0012]
[1633079293535,0.39257999,44889.0,44888.0,0.0008]
[1633079294134,0.41957999,44889.0,44888.0,0.0008]
[1633079294334,0.41957999,44889.0,44886.0,0.00280501]
[1633079294536,0.1,44888.0,44886.0,0.00280501]
[1633079294737,0.211736,44887.0,44886.0,0.00280501]
[1633079296195,0.211736,44887.0,44886.0,0.60280501]
[1633079296399,0.08478,44887.0,44886.0,0.60280501]
[1633079297000,0.08478,44887.0,44886.0,0.53830208]
[1633079297197,0.08478,44887.0,44886.0,0.00125335]
[1633079297401,0.0815637,44887.0,44886.0,0.00125335]
[1633079298003,0.0535637,44887.0,44886.0,0.00125335]
[1633079298400,0.0815637,44887.0,44886.0,0.00125335]
[1633079298600,0.2266,44886.0,44884.0,0.21157491]
[1633079298801,0.0535637,44885.0,44884.0,0.21157491]
[1633079299000,0.2085197,44885.0,44884.0,0.45947222]
[1633079299401,0.2085197,44885.0,44884.0,0.24789731]
[1633079301806,0.0535637,44885.0,44884.0,0.32520075]
[1633079302006,0.0535637,44885.0,44884.0,0.25010265]
[1633079302209,0.0535637,44885.0,44884.0,0.37350265]
[1633079302410,0.0535637,44885.0,44884.0,0.62910265]
[1633079303009,0.0535637,44885.0,44884.0,0.91233124]
[1633079303206,0.0535637,44885.0,44884.0,0.62910265]
[1633079303406,0.0535637,44885.0,44884.0,0.73349743]
[1633079303805,0.0535637,44885.0,44884.0,0.70449743]
[1633079304409,0.0535637,44885.0,44884.0,0.82481974]
[1633079304607,0.0935637,44885.0,44884.0,1.02837491]
[1633079305211,0.0935637,44885.0,44884.0,0.9360526]
[1633079305710,0.0935637,44885.0,44884.0,0.73249743]
[1633079305908,0.0935637,44885.0,44884.0,0.70449743]
[1633079306610,0.0935637,44885.0,44884.0,0.93000453]
[1633079307011,0.0935637,44885.0,44884.0,0.58000453]
[1633079308023,0.0935637,44885.0,44884.0,0.93000453]
[1633079308823,0.0935637,44885.0,44884.0,0.35340453]
[1633079309023,0.0935637,44885.0,44884.0,0.70340453]
[1633079310024,0.2035637,44885.0,44884.0,0.35340453]
[1633079310223,0.2035637,44885.0,44884.0,0.12789743]
[1633079310627,0.2035637,44885.0,44884.0,0.15589743]
[1633079311028,0.2035637,44885.0,44884.0,0.65589743]
[1633079311631,0.2035637,44885.0,44884.0,0.32955636]
[1633079312631,0.2035637,44885.0,44884.0,0.30155636]
[1633079312830,0.2035637,44885.0,44884.0,0.32955636]
[1633079313033,0.2035637,44885.0,44884.0,0.77955636]
[1633079313229,0.2035637,44885.0,44884.0,0.63615217]
[1633079313430,0.2035637,44885.0,44884.0,0.40955217]
[1633079314030,0.2035637,44885.0,44884.0,0.22516158]
[1633079314232,0.2035637,44885.0,44884.0,0.19716158]
[1633079314632,0.2035637,44885.0,44884.0,0.19836727]
[1633079315034,0.2035637,44885.0,44884.0,0.62769457]
[1633079315832,0.2035637,44885.0,44884.0,0.32769457]
[1633079316434,0.2035637,44885.0,44884.0,0.29969457]
[1633079316837,0.2035637,44885.0,44884.0,0.32769457]
[1633079318538,0.00919999,44889.0,44885.0,1.57411792]
[1633079318743,0.00919999,44889.0,44888.0,1.22698567]
[1633079318943,0.00919999,44889.0,44888.0,1.82588567]
[1633079319145,0.00919999,44889.0,44888.0,1.81005367]
[1633079319541,0.00919999,44889.0,44888.0,1.88563772]
[1633079319744,0.00919999,44889.0,44888.0,1.50989]
[1633079319941,0.00919999,44889.0,44888.0,1.87716625]
[1633079320942,0.00919999,44889.0,44888.0,2.00616625]
[1633079321947,0.11919999,44889.0,44888.0,2.00616625]
[1633079322610,0.11919999,44889.0,44888.0,1.97716625]
[1633079322812,0.11919999,44889.0,44888.0,2.00616625]
[1633079323610,0.11919999,44889.0,44888.0,1.97716625]
[1633079323813,0.11919999,44889.0,44888.0,1.60989]
[1633079325013,0.11919999,44889.0,44888.0,1.53989]
[1633079326017,0.11919999,44889.0,44888.0,1.46430595]
[1633079326418,0.11919999,44889.0,44888.0,1.44200595]
[1633079326816,0.11919999,44889.0,44888.0,1.41200595]
[1633079327019,0.14119999,44889.0,44888.0,1.52152783]
[1633079328424,0.11919999,44889.0,44888.0,1.51582783]
[1633079329020,0.11919999,44889.0,44888.0,1.54482783]
[1633079329820,0.11919999,44889.0,44888.0,1.53904683]
[1633079330020,0.11919999,44889.0,44888.0,1.54031311]
[1633079330625,0.11919999,44889.0,44888.0,1.51131311]
[1633079331227,0.11919999,44889.0,44888.0,1.51901311]
[1633079331626,0.11919999,44889.0,44888.0,0.33938816]
[1633079331826,0.11919999,44889.0,44888.0,0.33812188]
[1633079332228,0.11919999,44889.0,44888.0,0.03]
[1633079332229,0.47722705,44889.0,44888.0,0.03]
[1633079332429,0.70382705,44889.0,44888.0,0.03]
[1633079332631,0.70435715,44889.0,44885.0,0.22411792]
[1633079332828,0.154956,44888.0,44885.0,0.22411792]
[1633079333027,0.0005301,44887.0,44885.0,0.22411792]
[1633079333227,0.07379701,44886.0,44885.0,0.22411792]
[1633079333425,0.36138525,44886.0,44885.0,0.22411792]
[1633079334230,0.58583959,44886.0,44885.0,0.22411792]
[1633079334429,0.91040025,44886.0,44885.0,0.22411792]
[1633079335230,0.94940025,44886.0,44885.0,0.22411792]
[1633079336029,0.81243959,44886.0,44885.0,0.22411792]
[1633079336435,0.81243959,44886.0,44885.0,0.22258819]
[1633079337034,0.63123959,44886.0,44885.0,2.72753567]
[1633079337233,0.09325434,44886.0,44885.0,2.72753567]
[1633079337432,0.042,44886.0,44885.0,2.83791844]
[1633079337633,0.042,44886.0,44885.0,2.72753567]
[1633079338036,0.39716775,44886.0,44885.0,2.72753567]
[1633079338233,0.042,44886.0,44885.0,2.72753567]
[1633079338433,0.60133726,44888.0,44885.0,2.72753567]
[1633079338835,0.60133726,44888.0,44885.0,0.17985656]
[1633079339036,0.2266,44887.0,44885.0,0.17985656]
[1633079339232,0.044,44886.0,44885.0,0.17985656]
[1633079339831,0.044,44886.0,44885.0,0.17960656]
[1633079340633,0.2266,44886.0,44885.0,0.17960656]
[1633079340838,0.2266,44886.0,44885.0,0.17944656]
[1633079341834,0.2666,44886.0,44885.0,0.17944656]
[1633079342439,0.2666,44886.0,44885.0,0.02944656]
[1633079343234,0.3066,44886.0,44885.0,0.02944656]
[1633079343436,0.50492,44886.0,44885.0,0.02944656]
[1633079344035,0.45403,44886.0,44885.0,0.02944656]
[1633079344238,0.2266,44886.0,44885.0,0.02944656]
[1633079344436,0.22642,44886.0,44885.0,0.02944656]
[1633079345236,0.26342,44886.0,44885.0,0.02944656]
[1633079347241,0.26542,44886.0,44885.0,0.02944656]
[1633079347641,0.26669985,44886.0,44885.0,0.02944656]
[1633079347843,0.26722995,44886.0,44885.0,0.02944656]
[1633079348845,0.61593078,44886.0,44885.0,0.02944656]
[1633079349448,0.61093078,44886.0,44885.0,0.02944656]
[1633079349848,0.26042,44886.0,44885.0,0.02944656]
[1633079350644,0.22642,44886.0,44885.0,0.02944656]
[1633079350846,0.22642,44886.0,44885.0,0.24257705]
[1633079351444,0.25842,44886.0,44885.0,0.24357705]
[1633079352657,0.25842,44886.0,44885.0,0.24257705]
[1633079352860,0.22642,44886.0,44885.0,0.24257705]
[1633079353460,0.34178883,44886.0,44885.0,0.26257705]
[1633079354459,0.81878883,44886.0,44885.0,0.26257705]
[1633079354858,0.81878883,44886.0,44885.0,0.24257705]
[1633079354859,0.80178883,44886.0,44885.0,0.24257705]
[1633079355521,0.80178883,44886.0,44885.0,0.27057705]
[1633079356924,0.80178883,44886.0,44885.0,0.46273071]
[1633079357325,0.80178883,44886.0,44885.0,0.24257705]
[1633079357522,0.80178883,44886.0,44885.0,0.27057705]
[1633079357935,0.55188883,44886.0,44885.0,0.27057705]
[1633079358125,0.32478883,44886.0,44885.0,0.27057705]
[1633079358324,0.32478883,44886.0,44885.0,0.5077332]
[1633079358724,0.32478883,44886.0,44885.0,0.27057705]
[1633079358926,0.32478883,44886.0,44885.0,0.05744656]
[1633079359124,0.62478883,44886.0,44885.0,0.05744656]
[1633079359524,0.85188883,44886.0,44885.0,0.05744656]
[1633079359723,1.10178883,44886.0,44885.0,0.05744656]
[1633079360325,1.11978883,44886.0,44885.0,0.05544656]
[1633079360526,1.46505738,44886.0,44885.0,0.05544656]
[1633079361125,1.44705738,44886.0,44885.0,0.02944656]
[1633079361328,1.44705738,44886.0,44885.0,0.03944656]
[1633079361329,1.12703026,44886.0,44885.0,0.03944656]
[1633079361927,1.46826278,44886.0,44885.0,0.03944656]
[1633079362726,1.46826278,44886.0,44885.0,2.41621466]
[1633079362925,1.12703026,44886.0,44885.0,2.41621466]
[1633079363131,0.34826883,44886.0,44885.0,2.40621466]
[1633079363326,0.09836883,44886.0,44885.0,2.40621466]
[1633079363526,0.12236883,44886.0,44885.0,2.42321466]
[1633079364936,0.09836883,44886.0,44885.0,2.40621466]
[1633079365742,0.11336883,44886.0,44885.0,2.42021466]
[1633079366339,0.34046883,44886.0,44885.0,2.42021466]
[1633079366540,0.59036883,44886.0,44885.0,2.42021466]
[1633079366940,0.11336883,44886.0,44885.0,2.42021466]
[1633079367643,0.13036883,44886.0,44885.0,2.42021466]
[1633079367843,0.60736883,44886.0,44885.0,2.42021466]
[1633079368842,0.57536883,44886.0,44885.0,2.40621466]
[1633079369644,0.59736883,44886.0,44885.0,2.42721466]
[1633079370045,0.89736883,44886.0,44885.0,2.42721466]
[1633079371045,0.89736883,44886.0,44885.0,2.40621466]
[1633079371243,0.87536883,44886.0,44885.0,2.40621466]
[1633079371645,0.90436883,44886.0,44885.0,2.40621466]
[1633079372847,0.90436883,44886.0,44885.0,2.85171466]
[1633079373446,0.87536883,44886.0,44885.0,2.85171466]
[1633079373645,0.90436883,44886.0,44885.0,2.85171466]
[1633079374045,0.95436883,44886.0,44885.0,0.4455]
[1633079374246,1.18107783,44886.0,44885.0,0.4455]
[1633079374448,1.13107783,44886.0,44880.0,0.21478891]
[1633079374650,0.001,44881.0,44875.0,1.0516]
[1633079374847,0.001,44881.0,44862.0,0.28061382]
[1633079375047,0.001,44881.0,44873.0,0.08647606]
[1633079375048,0.09938254,44881.0,44873.0,0.08647606]
[1633079375244,0.09938254,44881.0,44873.0,0.08147606]
[1633079375447,0.001,44874.0,44873.0,0.08147606]
[1633079375645,0.001,44874.0,44873.0,0.76278962]
[1633079375851,0.2499,44873.0,44870.0,0.22248615]
[1633079376054,0.0012774,44871.0,44867.0,0.0012]
[1633079376451,0.2272391,44870.0,44867.0,0.0012]
[1633079376649,0.36486328,44869.0,44867.0,0.0012]
[1633079376850,0.15465,44868.0,44867.0,0.0012]
[1633079377052,0.60750571,44868.0,44866.0,0.19133576]
[1633079377248,0.60750571,44868.0,44864.0,0.0012]
[1633079377249,0.35789696,44867.0,44864.0,0.0012]
[1633079377650,0.226709,44866.0,44864.0,0.0012]
[1633079378061,0.257924,44868.0,44867.0,0.90655793]
[1633079378062,0.035,44868.0,44867.0,0.90655793]
[1633079378254,0.035,44868.0,44867.0,1.68956744]
[1633079378455,0.035,44868.0,44867.0,1.43956744]
[1633079378656,0.035,44868.0,44867.0,1.38956744]
[1633079378851,0.035,44868.0,44867.0,1.28956744]
[1633079379053,0.035,44868.0,44867.0,1.38454153]
[1633079379649,0.37357146,44873.0,44867.0,1.41354153]
[1633079379851,0.31480943,44874.0,44867.0,0.43683253]
[1633079380049,0.33997567,44873.0,44867.0,0.40783253]
[1633079380249,0.33997567,44873.0,44870.0,0.18386773]
[1633079380449,0.226709,44872.0,44870.0,0.18386773]
[1633079381051,0.226709,44872.0,44867.0,0.40783253]
[1633079381253,0.222894,44870.0,44867.0,0.31285844]
[1633079381451,0.222894,44870.0,44867.0,0.15655793]
[1633079381852,0.226709,44869.0,44867.0,0.15655793]
[1633079382053,0.222894,44870.0,44867.0,0.15655793]
[1633079382314,0.226709,44869.0,44867.0,0.15655793]
[1633079382852,0.10299585,44868.0,44867.0,0.15655793]
[1633079383055,0.25764585,44868.0,44867.0,0.15655793]
[1633079383255,0.83053233,44868.0,44867.0,0.15655793]
[1633079383453,1.05738209,44868.0,44867.0,0.15655793]
[1633079383655,0.83053233,44868.0,44867.0,0.17955793]
[1633079384055,1.08043233,44868.0,44867.0,0.17955793]
[1633079384856,0.72697864,44868.0,44867.0,0.09480586]
[1633079385057,0.72697864,44868.0,44867.0,0.07180586]
[1633079385326,0.57232864,44868.0,44867.0,0.37180586]
[1633079385457,0.79903764,44868.0,44867.0,0.37180586]
[1633079385657,0.82803764,44868.0,44867.0,0.07180586]
[1633079385859,0.82803764,44868.0,44867.0,0.06680586]
[1633079387862,0.83803764,44868.0,44867.0,0.06680586]
[1633079388065,1.53342429,44868.0,44867.0,0.06680586]
[1633079388331,2.04565982,44868.0,44867.0,0.06680586]
[1633079388470,2.04688015,44868.0,44867.0,0.06680586]
[1633079388666,1.21680586,44867.0,44865.0,0.0004]
[1633079388867,1.34660251,44866.0,44865.0,0.0004]
[1633079389063,1.34422765,44866.0,44865.0,0.0004]
[1633079389867,0.3,44863.0,44862.0,0.0012]